fUST/lending_fUST_20240602
["ID","MTS","AMOUNT","RATE_DAILY","PERIOD"]
[328398313,1717337438518,-7897.3741908,0.00019172,2]
[328398406,1717337486385,302.91535958,9.999e-05,2]
[328398407,1717337493765,154.9690062,9.999e-05,2]
[328398408,1717337509028,1045.36961874,9.999e-05,2]
[328398410,1717337525266,1154.21657296,9.999e-05,2]
[328398411,1717337532986,241.69642707,9.999e-05,2]
[328398412,1717337533774,2066.56429307,9.999e-05,2]
[328398413,1717337540156,164.43840834,9.999e-05,2]
[328398414,1717337540207,154.9690062,9.999e-05,2]
[328398415,1717337584389,489.04932178,9.999e-05,2]
[328398416,1717337588819,1903.7674032,9.998e-05,2]
[328398444,1717337927731,150.95471359,0.00022034,30]
[328398445,1717337927832,150.95471359,0.00021594,120]
[328398452,1717338145831,241.69642707,9.999e-05,2]
[328398453,1717338166693,164.43840834,9.999e-05,2]
[328398465,1717338548879,288.772,0.00028,120]
[328398495,1717338632886,-356.424154,0.00015169,2]
[328398497,1717338632895,-699.575846,0.00015964,2]
[328398588,1717338639032,-584.690697,0.00015964,2]
[328398589,1717338639042,-19286.03955705,0.00015988,2]
[328398590,1717338639052,-3000.0,0.00015989,2]
[328398591,1717338639062,-24890.0,0.00016062,2]
[328398592,1717338639072,-8354.0074147,0.00016062,2]
[328398593,1717338639082,-215.49590761,0.00016637,2]
[328398594,1717338639092,-164.14060154,0.00017663,2]
[328398595,1717338639102,-174.36565257,0.00017664,2]
[328398596,1717338639113,-41201.21929669,0.00017665,2]
[328398597,1717338639124,-927.58017558,0.00018211,2]
[328398598,1717338639138,-153.0,0.00018378,2]
[328398599,1717338639148,-153.0,0.00018378,2]
[328398600,1717338639158,-4233.16048784,0.00018702,2]
[328398601,1717338639169,-2000.0,0.00019075,2]
[328398602,1717338639179,-15843.19244345,0.00019078,2]
[328398603,1717338639189,-481.36571248,0.0001915,2]
[328398604,1717338639199,-155.367718,0.00019164,2]
[328398605,1717338639209,-187.42283178,0.00019164,2]
[328398606,1717338639219,-1156.9358188,0.00019164,2]
[328398607,1717338639229,-801.4058638,0.00019164,2]
[328398608,1717338639239,-155.15093908,0.00019164,2]
[328398609,1717338639249,-1455.8653268,0.00019164,2]
[328398610,1717338639258,-1237.83873559,0.00019165,2]
[328398611,1717338639271,-453.47472978,0.00019165,2]
[328398612,1717338639281,-880.54658908,0.00019165,2]
[328398613,1717338639290,-151.0,0.00019165,2]
[328398614,1717338639301,-151.0,0.00019165,2]
[328398615,1717338639311,-175.879702,0.00019165,2]
[328398616,1717338639320,-175.879702,0.00019165,2]
[328398617,1717338639330,-151.0,0.00019165,2]
[328398618,1717338639340,-258.987052,0.00019165,2]
[328398619,1717338639350,-151.0,0.00019165,2]
[328398620,1717338639360,-151.0,0.00019165,2]
[328398621,1717338639370,-151.0,0.00019165,2]
[328398622,1717338639381,-258.987052,0.00019165,2]
[328398623,1717338639390,-248.028146,0.00019165,2]
[328398624,1717338639400,-248.028146,0.00019165,2]
[328398625,1717338639410,-151.999598,0.00019165,2]
[328398626,1717338639420,-151.0,0.00019165,2]
[328398627,1717338639429,-151.0,0.00019165,2]
[328398628,1717338639439,-401.491511,0.00019165,2]
[328398629,1717338639449,-401.491511,0.00019165,2]
[328398630,1717338639458,-699.7828757,0.00019165,2]
[328398654,1717338645244,-518.07256041,0.00015962,2]
[328398655,1717338645565,-196.01505587,0.00015962,2]
[328398656,1717338645574,-306.9968281,0.00016739,2]
[328398657,1717338645654,-407.09078814,0.00016739,2]
[328398659,1717338645663,-704.8206033,0.00019165,2]
[328398660,1717338645673,-1404.603479,0.00019165,2]
[328398661,1717338645683,-151.0,0.00019165,2]
[328398662,1717338645693,-137.59742534,0.00019165,2]
[328398665,1717338646466,-13.40257466,0.00019165,2]
[328398667,1717338646477,-151.0,0.00019165,2]
[328398668,1717338646486,-151.0,0.00019165,2]
[328398669,1717338646495,-151.0,0.00019165,2]
[328398670,1717338646505,-151.0,0.00019165,2]
[328398671,1717338646514,-316.62623806,0.00019167,2]
[328398672,1717338646523,-194.73719804,0.00019167,2]
[328398673,1717338646532,-355.03564674,0.00019167,2]
[328398674,1717338646541,-156.63274877,0.00019167,2]
[328398675,1717338646551,-1900.31793063,0.00019167,2]
[328398676,1717338646561,-2682.52983983,0.00019167,2]
[328398677,1717338646571,-1043.75393465,0.00019167,2]
[328398678,1717338646580,-1538.64861826,0.00019167,2]
[328398679,1717338646589,-151.0,0.00019167,2]
[328398680,1717338646598,-276.334314,0.00019167,2]
[328398682,1717338646607,-151.0,0.00019167,2]
[328398684,1717338646616,-151.0,0.00019167,2]
[328398686,1717338646626,-416.616955,0.00019167,2]
[328398687,1717338646635,-416.616955,0.00019167,2]
[328398689,1717338646644,-151.0,0.00019167,2]
[328398690,1717338646654,-151.0,0.00019167,2]
[328398691,1717338646663,-1980.05193058,0.00019168,2]
[328398692,1717338646673,-2031.43265952,0.00019168,2]
[328398693,1717338646681,-175.879702,0.00019168,2]
[328398694,1717338646690,-175.879702,0.00019168,2]
[328398695,1717338646699,-151.0,0.00019168,2]
[328398696,1717338646709,-258.987052,0.00019168,2]
[328398697,1717338646718,-151.0,0.00019168,2]
[328398698,1717338646727,-151.0,0.00019168,2]
[328398699,1717338646736,-151.0,0.00019168,2]
[328398700,1717338646745,-151.0,0.00019168,2]
[328398701,1717338646755,-258.987052,0.00019168,2]
[328398702,1717338646764,-248.028146,0.00019168,2]
[328398703,1717338646775,-248.028146,0.00019168,2]
[328398704,1717338646785,-151.0,0.00019168,2]
[328398705,1717338646794,-151.0,0.00019168,2]
[328398707,1717338646803,-401.491511,0.00019168,2]
[328398708,1717338646812,-401.491511,0.00019168,2]
[328398709,1717338646822,-1404.603479,0.00019168,2]
[328398710,1717338646831,-1404.603479,0.00019168,2]
[328398711,1717338646840,-151.0,0.00019168,2]
[328398712,1717338646850,-151.0,0.00019168,2]
[328398713,1717338646859,-151.0,0.00019168,2]
[328398714,1717338646868,-166.428341,0.00019168,2]
[328398715,1717338646878,-151.0,0.00019168,2]
[328398716,1717338646889,-182.198015,0.00019168,2]
[328398717,1717338646898,-151.0,0.00019168,2]
[328398718,1717338646908,-2235.29784366,0.00019169,7]
[328398719,1717338646919,-1339.03304429,0.00019169,2]
[328398720,1717338646929,-181.49597322,0.00019169,2]
[328398721,1717338646939,-1498.17750343,0.00019169,2]
[328398722,1717338646949,-29834.88595309,0.00019169,2]
[328398723,1717338647178,-6806.4,0.00019169,2]
[328398724,1717338647357,-714.08761624,0.00017516,2]
[328398725,1717338647367,-5397.36955776,0.00019169,2]
[328398726,1717338647376,-836.40490421,0.00019169,2]
[328398727,1717338647386,-758.34900191,0.00019169,2]
[328398728,1717338647395,-155.02513059,0.00019169,2]
[328398729,1717338647404,-720.74866385,0.00019169,2]
[328398730,1717338647414,-725.44308254,0.00019169,2]
[328398731,1717338647424,-529.09876223,0.00019169,2]
[328398732,1717338647433,-309.51069648,0.00019169,2]
[328398733,1717338647442,-517.45331499,0.00019169,2]
[328398734,1717338647451,-156.68308505,0.00019169,2]
[328398735,1717338647460,-1871.01679575,0.00019169,2]
[328398736,1717338647469,-523.23105641,0.00019169,2]
[328398737,1717338647479,-151.0,0.00019169,2]
[328398738,1717338647489,-232.807367,0.00019169,2]
[328398739,1717338647498,-151.0,0.00019169,2]
[328398740,1717338647507,-151.0,0.00019169,2]
[328398741,1717338647516,-151.0,0.00019169,2]
[328398742,1717338647525,-151.0,0.00019169,2]
[328398743,1717338647534,-175.879702,0.00019169,2]
[328398744,1717338647543,-175.879702,0.00019169,2]
[328398745,1717338647553,-175.879702,0.00019169,2]
[328398746,1717338647562,-175.879702,0.00019169,2]
[328398747,1717338647571,-151.0,0.00019169,2]
[328398748,1717338647580,-151.0,0.00019169,2]
[328398749,1717338647589,-258.987052,0.00019169,2]
[328398750,1717338647599,-258.987052,0.00019169,2]
[328398751,1717338647608,-151.0,0.00019169,2]
[328398752,1717338647617,-151.0,0.00019169,2]
[328398753,1717338647626,-151.0,0.00019169,2]
[328398754,1717338647636,-151.0,0.00019169,2]
[328398755,1717338647645,-151.0,0.00019169,2]
[328398756,1717338647654,-151.0,0.00019169,2]
[328398757,1717338647663,-151.0,0.00019169,2]
[328398758,1717338647672,-258.987052,0.00019169,2]
[328398759,1717338647681,-258.987052,0.00019169,2]
[328398760,1717338647690,-248.028146,0.00019169,2]
[328398761,1717338647699,-248.028146,0.00019169,2]
[328398762,1717338647708,-248.028146,0.00019169,2]
[328398763,1717338647718,-248.028146,0.00019169,2]
[328398764,1717338647730,-197.872139,0.00019169,2]
[328398765,1717338647739,-151.0,0.00019169,2]
[328398766,1717338647748,-151.0,0.00019169,2]
[328398767,1717338647757,-401.491511,0.00019169,2]
[328398768,1717338647768,-401.491511,0.00019169,2]
[328398769,1717338647777,-401.491511,0.00019169,2]
[328398770,1717338647786,-401.491511,0.00019169,2]
[328398771,1717338647797,-1404.603479,0.00019169,2]
[328398772,1717338647807,-1404.603479,0.00019169,2]
[328398773,1717338647816,-1404.603479,0.00019169,2]
[328398774,1717338647825,-1404.603479,0.00019169,2]
[328398775,1717338647834,-151.0,0.00019169,2]
[328398776,1717338647844,-151.0,0.00019169,2]
[328398777,1717338647853,-151.0,0.00019169,2]
[328398778,1717338647862,-151.0,0.00019169,2]
[328398779,1717338647872,-151.0,0.00019169,2]
[328398780,1717338647881,-151.0,0.00019169,2]
[328398781,1717338647892,-151.0,0.00019169,2]
[328398782,1717338647901,-151.0,0.00019169,2]
[328398783,1717338647910,-163.420735,0.00019169,2]
[328398784,1717338647919,-151.0,0.00019169,2]
[328398785,1717338647927,-416.616955,0.00019169,2]
[328398786,1717338647936,-416.616955,0.00019169,2]
[328398787,1717338647946,-151.0,0.00019169,2]
[328398788,1717338647955,-151.0,0.00019169,2]
[328398789,1717338647964,-416.616955,0.00019169,2]
[328398790,1717338647973,-416.616955,0.00019169,2]
[328398791,1717338647982,-416.616955,0.00019169,2]
[328398792,1717338647991,-416.616955,0.00019169,2]
[328398793,1717338648000,-151.0,0.00019169,2]
[328398794,1717338648009,-221.739,0.00019169,2]
[328398795,1717338648018,-151.0,0.00019169,2]
[328398796,1717338648027,-151.0,0.00019169,2]
[328398797,1717338648036,-10526.1668146,0.0001917,2]
[328398798,1717338648045,-295.89031792,0.0001917,2]
[328398799,1717338648055,-151.0,0.0001917,2]
[328398800,1717338648064,-151.0,0.0001917,2]
[328398801,1717338648072,-151.0,0.0001917,2]
[328398802,1717338648081,-151.0,0.0001917,2]
[328398803,1717338648090,-175.879702,0.0001917,2]
[328398804,1717338648098,-175.879702,0.0001917,2]
[328398805,1717338648107,-151.0,0.0001917,2]
[328398806,1717338648117,-258.987052,0.0001917,2]
[328398807,1717338648126,-151.0,0.0001917,2]
[328398808,1717338648136,-151.0,0.0001917,2]
[328398809,1717338648145,-258.987052,0.0001917,2]
[328398810,1717338648154,-248.028146,0.0001917,2]
[328398811,1717338648163,-248.028146,0.0001917,2]
[328398812,1717338648172,-151.0,0.0001917,2]
[328398813,1717338648181,-401.491511,0.0001917,2]
[328398814,1717338648189,-401.491511,0.0001917,2]
[328398815,1717338648198,-1404.603479,0.0001917,2]
[328398816,1717338648207,-1404.603479,0.0001917,2]
[328398817,1717338648217,-151.0,0.0001917,2]
[328398818,1717338648226,-151.0,0.0001917,2]
[328398819,1717338648235,-151.0,0.0001917,2]
[328398820,1717338648244,-151.0,0.0001917,2]
[328398821,1717338648254,-416.616955,0.0001917,2]
[328398822,1717338648263,-416.616955,0.0001917,2]
[328398823,1717338648272,-151.0,0.0001917,2]
[328398824,1717338648281,-2502.18579779,0.00019171,2]
[328398825,1717338648290,-8742.44558291,0.00019172,2]
[328398826,1717338648300,-151.0,0.00019172,2]
[328398827,1717338648309,-151.0,0.00019172,2]
[328398828,1717338648319,-151.0,0.00019172,2]
[328398829,1717338648328,-151.0,0.00019172,2]
[328398830,1717338648337,-151.0,0.00019172,2]
[328398831,1717338648346,-151.0,0.00019172,2]
[328398832,1717338648356,-157.939075,0.00019172,2]
[328398833,1717338648365,-175.879702,0.00019172,2]
[328398834,1717338648375,-175.879702,0.00019172,2]
[328398835,1717338648384,-175.879702,0.00019172,2]
[328398836,1717338648395,-175.879702,0.00019172,2]
[328398837,1717338648404,-160.973874,0.00019172,2]
[328398838,1717338648414,-258.987052,0.00019172,2]
[328398839,1717338648423,-258.987052,0.00019172,2]
[328398840,1717338648433,-151.0,0.00019172,2]
[328398841,1717338648443,-161.957791,0.00019172,2]
[328398842,1717338648452,-151.0,0.00019172,2]
[328398843,1717338648462,-151.0,0.00019172,2]
[328398844,1717338648471,-258.987052,0.00019172,2]
[328398845,1717338648481,-258.987052,0.00019172,2]
[328398846,1717338648491,-248.028146,0.00019172,2]
[328398847,1717338648500,-248.028146,0.00019172,2]
[328398848,1717338648509,-248.028146,0.00019172,2]
[328398849,1717338648519,-248.028146,0.00019172,2]
[328398850,1717338648528,-151.0,0.00019172,2]
[328398851,1717338648538,-151.0,0.00019172,2]
[328398852,1717338648547,-401.491511,0.00019172,2]
[328398853,1717338648557,-401.491511,0.00019172,2]
[328398854,1717338648566,-401.491511,0.00019172,2]
[328398855,1717338648576,-401.491511,0.00019172,2]
[328398856,1717338648585,-401.491511,0.00019172,2]
[328398857,1717338648594,-401.491511,0.00019172,2]
[328398858,1717338648602,-1404.603479,0.00019172,2]
[328398859,1717338648611,-1404.603479,0.00019172,2]
[328398860,1717338648620,-1404.603479,0.00019172,2]
[328398861,1717338648629,-1404.603479,0.00019172,2]
[328398862,1717338648641,-1404.603479,0.00019172,2]
[328398863,1717338648651,-1404.603479,0.00019172,2]
[328398864,1717338648660,-151.0,0.00019172,2]
[328398865,1717338648669,-151.0,0.00019172,2]
[328398866,1717338648681,-151.0,0.00019172,2]
[328398867,1717338648690,-151.0,0.00019172,2]
[328398868,1717338648700,-151.0,0.00019172,2]
[328398869,1717338648709,-151.0,0.00019172,2]
[328398870,1717338648718,-151.0,0.00019172,2]
[328398871,1717338648727,-151.0,0.00019172,2]
[328398872,1717338648735,-262.914996,0.00019172,2]
[328398873,1717338648745,-416.616955,0.00019172,2]
[328398874,1717338648754,-416.616955,0.00019172,2]
[328398875,1717338648764,-416.616955,0.00019172,2]
[328398876,1717338648773,-416.616955,0.00019172,2]
[328398877,1717338648783,-416.616955,0.00019172,2]
[328398878,1717338648792,-416.616955,0.00019172,2]
[328398879,1717338648801,-266.934933,0.00019172,2]
[328398880,1717338648811,-33152.91982485,0.00019172,2]
[328398881,1717338648820,-346.12788444,0.00019173,2]
[328398882,1717338648830,-156.37060772,0.00019174,2]
[328398883,1717338648840,-47270.81845294,0.00019175,2]
[328398884,1717338648849,-151.0,0.00019175,2]
[328398885,1717338648858,-151.0,0.00019175,2]
[328398886,1717338648868,-151.0,0.00019175,2]
[328398887,1717338648876,-175.879702,0.00019175,2]
[328398888,1717338648886,-175.879702,0.00019175,2]
[328398889,1717338648900,-258.987052,0.00019175,2]
[328398890,1717338648909,-151.0,0.00019175,2]
[328398891,1717338648918,-258.987052,0.00019175,2]
[328398892,1717338648927,-248.028146,0.00019175,2]
[328398893,1717338648935,-248.028146,0.00019175,2]
[328398894,1717338648944,-151.0,0.00019175,2]
[328398895,1717338648953,-401.491511,0.00019175,2]
[328398896,1717338648962,-401.491511,0.00019175,2]
[328398897,1717338648972,-1404.603479,0.00019175,2]
[328398898,1717338648981,-1404.603479,0.00019175,2]
[328398899,1717338648991,-151.0,0.00019175,2]
[328398900,1717338649000,-151.0,0.00019175,2]
[328398901,1717338649009,-151.0,0.00019175,2]
[328398902,1717338649019,-416.616955,0.00019175,2]
[328398903,1717338649028,-416.616955,0.00019175,2]
[328398904,1717338649038,-3798.18417833,0.00019176,2]
[328398905,1717338649047,-207.82716215,0.00019176,2]
[328398906,1717338649057,-281.85841065,0.00019176,2]
[328398907,1717338649070,-155.15964238,0.00019176,2]
[328398908,1717338649080,-10333.70878638,0.00019176,2]
[328398909,1717338649090,-253.80034855,0.00019176,2]
[328398910,1717338649099,-551.23403467,0.00019176,2]
[328398911,1717338649108,-537.15877029,0.00019176,2]
[328398912,1717338649120,-403.61337079,0.00019176,2]
[328398913,1717338649130,-945.99447756,0.00019176,2]
[328398914,1717338649142,-222.15396699,0.00019176,2]
[328398915,1717338649151,-155.00775523,0.00019176,2]
[328398916,1717338649161,-155.6137437,0.00019176,2]
[328398917,1717338649170,-250.99001948,0.00019176,2]
[328398918,1717338649178,-151.0,0.00019176,2]
[328398919,1717338649187,-151.0,0.00019176,2]
[328398920,1717338649196,-151.0,0.00019176,2]
[328398921,1717338649206,-175.879702,0.00019176,2]
[328398922,1717338649215,-175.879702,0.00019176,2]
[328398923,1717338649224,-258.987052,0.00019176,2]
[328398924,1717338649234,-151.0,0.00019176,2]
[328398925,1717338649243,-258.987052,0.00019176,2]
[328398926,1717338649253,-248.028146,0.00019176,2]
[328398927,1717338649262,-248.028146,0.00019176,2]
[328398928,1717338649271,-151.0,0.00019176,2]
[328398929,1717338649280,-401.491511,0.00019176,2]
[328398930,1717338649289,-401.49152017,0.00019176,2]
[328398931,1717338649299,-1079.61598496,0.00019176,2]
[328398932,1717338649463,-324.98749404,0.00019176,2]
[328398933,1717338649473,-1006.63778327,0.00019176,2]
[328399576,1717339591883,292.14570031,0.00014305,2]
[328399604,1717339620123,2092.66358583,0.00014305,2]
[328399619,1717339634821,155.10373402,0.00014305,2]
[328399621,1717339636112,992.85011881,0.00014305,2]
[328399634,1717339648872,201.79933286,0.00014305,2]
[328400003,1717339832358,-7993.53496526,0.00017635,2]
[328400004,1717339832371,-569.04385346,0.00017635,2]
[328400005,1717339832383,-677.83,0.00017635,2]
[328400038,1717339838220,-334.39650053,0.00017635,2]
[328400040,1717339838318,-954.59794153,0.00017635,2]
[328400042,1717339838329,-15294.1839833,0.00017636,2]
[328400045,1717339838339,-178.212077,0.00017706,2]
[328400048,1717339838350,-187.6600039,0.00017743,2]
[328400051,1717339838359,-756.12498362,0.000181,2]
[328400054,1717339838369,-308.338752,0.000187,2]
[328400057,1717339838378,-4233.16048784,0.00018744,2]
[328400059,1717339838387,-634.77364969,0.00018876,2]
[328400060,1717339838396,-153.0,0.000189,2]
[328400062,1717339838409,-150.0,0.000189,2]
[328400064,1717339838419,-153.0,0.00019,2]
[328400065,1717339838428,-10688.71053699,0.00019068,2]
[328400067,1717339838437,-302.0,0.00019073,2]
[328400069,1717339838446,-162.76136217,0.00019074,2]
[328400071,1717339838456,-640.59988326,0.00019074,2]
[328400073,1717339838465,-2678.02258047,0.00019074,2]
[328400075,1717339838475,-2117.39226672,0.00019074,2]
[328400077,1717339838484,-1848.19015495,0.00019075,2]
[328400079,1717339838494,-45203.43101031,0.00019075,2]
[328400081,1717339838504,-153.0,0.000191,2]
[328400082,1717339838512,-2109.94083119,0.00019157,2]
[328400083,1717339838521,-7421.7890694,0.00019176,2]
[328400084,1717339838531,-1980.05193058,0.00019176,2]
[328400085,1717339838540,-303.88290487,0.00019177,2]
[328400086,1717339838549,-899.40727401,0.00019177,2]
[328400087,1717339838558,-820.73,0.00019178,2]
[328400088,1717339838567,-820.73,0.00019178,2]
[328400089,1717339838577,-820.73,0.00019178,2]
[328400090,1717339838588,-820.73,0.00019178,2]
[328400091,1717339838597,-820.73,0.00019178,2]
[328400092,1717339838606,-820.73,0.00019178,2]
[328400093,1717339838616,-820.73,0.00019178,2]
[328400094,1717339838625,-820.73,0.00019178,2]
[328400095,1717339838635,-820.73,0.00019178,2]
[328400096,1717339838644,-820.73,0.00019178,2]
[328400097,1717339838655,-820.73,0.00019178,2]
[328400098,1717339838664,-820.73,0.00019178,2]
[328400099,1717339838674,-820.73,0.00019178,2]
[328400101,1717339838684,-820.73,0.00019178,2]
[328400103,1717339838694,-820.73,0.00019178,2]
[328400105,1717339838704,-820.73,0.00019178,2]
[328400107,1717339838714,-820.73,0.00019178,2]
[328400109,1717339838723,-820.73,0.00019178,2]
[328400111,1717339838732,-820.73,0.00019178,2]
[328400113,1717339838742,-820.73,0.00019178,2]
[328400115,1717339838751,-820.73,0.00019178,2]
[328400117,1717339838761,-820.73,0.00019178,2]
[328400119,1717339838771,-820.73,0.00019178,2]
[328400121,1717339838780,-820.86437092,0.00019178,2]
[328400123,1717339838790,-500.0,0.00019178,2]
[328400125,1717339838799,-500.0,0.00019178,2]
[328400127,1717339838808,-381.49815064,0.00019178,2]
[328400129,1717339838818,-173.812288,0.00019178,2]
[328400131,1717339838827,-153.0,0.000192,2]
[328400133,1717339838836,-153.0,0.000192,2]
[328400135,1717339838845,-153.0,0.000192,2]
[328400137,1717339838854,-204.8553096,0.000192,2]
[328400139,1717339838864,-351.98389155,0.0001945,2]
[328400141,1717339838873,-620.73868248,0.00019819,2]
[328400143,1717339838882,-800.43926434,0.000199,2]
[328400145,1717339838891,-151.0,0.000199,2]
[328400147,1717339838903,-151.0,0.000199,2]
[328400149,1717339838914,-7362.59919368,0.0001999,2]
[328400151,1717339838923,-151.0,0.0001999,2]
[328400153,1717339838932,-151.0,0.0001999,2]
[328400155,1717339838941,-151.0,0.0001999,2]
[328400157,1717339838951,-151.0,0.0001999,2]
[328400159,1717339838960,-151.0,0.0001999,2]
[328400161,1717339838970,-162.344607,0.0001999,2]
[328400163,1717339838979,-151.0,0.0001999,2]
[328400165,1717339838989,-151.0,0.0001999,2]
[328400167,1717339838998,-151.0,0.0001999,2]
[328400169,1717339839008,-498.0,0.00019991,2]
[328400171,1717339839018,-177.094,0.00019991,2]
[328400173,1717339839027,-209.883,0.00019991,2]
[328400175,1717339839037,-7846.84568617,0.0002,2]
[328400177,1717339839047,-282.0,0.0002,2]
[328400179,1717339839057,-238.36716116,0.0002,2]
[328400181,1717339839067,-1353.45685898,0.0002,2]
[328400183,1717339839076,-380.0,0.0002,2]
[328400185,1717339839085,-154.9690062,0.0002,2]
[328400187,1717339839095,-151.0,0.0002,2]
[328400189,1717339839104,-151.0,0.0002,2]
[328400191,1717339839113,-151.0,0.0002,2]
[328400193,1717339839123,-151.0,0.0002,2]
[328400195,1717339839133,-151.0,0.0002,2]
[328400197,1717339839143,-252.866439,0.0002,2]
[328400199,1717339839155,-151.0,0.0002,2]
[328400201,1717339839163,-252.866439,0.0002,2]
[328400202,1717339839172,-151.0,0.0002,2]
[328400203,1717339839181,-151.0,0.0002,2]
[328400204,1717339839191,-151.0,0.0002,2]
[328400205,1717339839200,-212.55342,0.0002,2]
[328400206,1717339839210,-151.0,0.0002,2]
[328400207,1717339839221,-151.0,0.0002,2]
[328400208,1717339839230,-151.0,0.0002,2]
[328400209,1717339839240,-151.0,0.0002,2]
[328400210,1717339839249,-258.717832,0.0002,2]
[328400211,1717339839259,-258.717832,0.0002,2]
[328400212,1717339839269,-291.406506,0.0002,2]
[328400213,1717339839278,-266.0314252,0.00020219,2]
[328400214,1717339839288,-410.8999075,0.00020356,2]
[328400215,1717339839298,-500.0,0.00020546,2]
[328400217,1717339839311,-325.92072902,0.00020546,2]
[328400218,1717339839321,-200.0,0.00020546,2]
[328400220,1717339839330,-261.50920553,0.00020546,2]
[328400222,1717339839339,-500.0,0.00020546,2]
[328400224,1717339839351,-160.28977731,0.00020546,2]
[328400226,1717339839360,-500.0,0.00020546,2]
[328400227,1717339839370,-550.0,0.00020546,2]
[328400229,1717339839380,-298.42059236,0.00020546,2]
[328400231,1717339839390,-500.0,0.00020546,2]
[328400233,1717339839400,-200.05620454,0.00020546,2]
[328400234,1717339839410,-500.0,0.00020546,2]
[328400235,1717339839419,-489.81214027,0.00020546,2]
[328400236,1717339839429,-500.0,0.00020546,2]
[328400237,1717339839439,-500.0,0.00020546,2]
[328400238,1717339839449,-316.53107891,0.00020546,2]
[328400239,1717339839459,-500.0,0.00020546,2]
[328400240,1717339839468,-235.0,0.00020546,2]
[328400241,1717339839477,-2724.887553,0.00020547,2]
[328400242,1717339839487,-3622.5356525,0.0002066,7]
[328400243,1717339839498,-160.68177861,0.00020994,2]
[328400244,1717339839508,-235.54053126,0.00020994,2]
[328400245,1717339839517,-155.39305239,0.00020995,2]
[328400246,1717339839527,-861.69156635,0.00020996,2]
[328400247,1717339839536,-265.90297102,0.00020996,2]
[328400248,1717339839546,-239.88247378,0.00020996,2]
[328400249,1717339839556,-151.0,0.00020996,2]
[328400250,1717339839565,-151.0,0.00020996,2]
[328400251,1717339839575,-22892.94089772,0.00021,2]
[328400252,1717339839587,-151.0,0.00021,2]
[328400253,1717339839596,-151.0,0.00021,2]
[328400254,1717339839606,-151.0,0.00021,2]
[328400255,1717339839616,-151.0,0.00021,2]
[328400256,1717339839626,-151.0,0.00021,2]
[328400257,1717339839635,-151.0,0.00021,2]
[328400258,1717339839645,-151.0,0.00021,2]
[328400259,1717339839656,-151.0,0.00021,2]
[328400260,1717339839665,-151.0,0.00021,2]
[328400261,1717339839674,-151.0,0.00021,2]
[328400262,1717339839684,-252.866439,0.00021,2]
[328400263,1717339839693,-151.0,0.00021,2]
[328400264,1717339839703,-252.866439,0.00021,2]
[328400265,1717339839712,-151.0,0.00021,2]
[328400266,1717339839721,-151.0,0.00021,2]
[328400267,1717339839730,-151.0,0.00021,2]
[328400268,1717339839740,-151.0,0.00021,2]
[328400269,1717339839749,-151.0,0.00021,2]
[328400270,1717339839758,-258.717832,0.00021,2]
[328400271,1717339839767,-258.717832,0.00021,2]
[328400272,1717339839777,-214.7,0.00021008,5]
[328400273,1717339839967,-214.7,0.0002129,5]
[328400274,1717339839977,-13200.9261578,0.00021292,7]
[328400275,1717339839986,-151.0,0.0002131,2]
[328400276,1717339839996,-203.527113,0.00021401,2]
[328400277,1717339840005,-175.249059,0.00021401,2]
[328400278,1717339840014,-214.7,0.00021572,5]
[328400279,1717339840023,-2481.97877849,0.00021594,2]